bitfinex/quotes_ETHUSD_20240828
["timestamp","ask_amount","ask_price","bid_price","bid_amount"]
[1724862610653,2.3599,2488.5,2487.2,2.2565]
[1724862610856,0.64280801,2488.6,2488.3,4.0187]
[1724862611091,0.05000007,2488.8,2488.3,4.0187]
[1724862611300,4.06800007,2488.8,2488.1,8.03801]
[1724862611502,3.0,2489.1,2487.7,4.01973]
[1724862611503,2.3514,2488.6,2487.7,8.03935]
[1724862611806,4.01876,2488.4,2487.5,4.02001]
[1724862611949,4.06885007,2488.3,2487.7,4.01967]
[1724862612153,2.3514,2488.1,2487.5,4.01996]
[1724862612355,2.3514,2488.1,2487.4,4.02017]
[1724862612356,0.05000007,2488.0,2487.4,4.02017]
[1724862612598,0.47000701,2488.0,2487.1,4.02065]
[1724862612792,0.47000701,2488.0,2487.3,4.02031]
[1724862613092,0.47000701,2488.0,2487.5,4.02008]
[1724862613266,0.47000701,2488.0,2487.7,4.01966]
[1724862613471,0.05000007,2488.0,2487.5,4.02002]
[1724862614219,4.01805,2488.8,2488.2,4.01894]
[1724862614220,2.4989,2488.5,2488.2,4.01894]
[1724862614498,4.12694067,2489.5,2487.3,0.4043]
[1724862614499,2.4989,2488.9,2488.8,8.036]
[1724862614666,2.4989,2489.7,2489.3,4.01704]
[1724862614988,2.4989,2489.7,2488.5,4.09879639]
[1724862614989,0.05000007,2489.6,2489.1,4.01745]
[1724862615188,2.4989,2489.7,2489.4,4.01689]
[1724862615392,2.4989,2489.7,2488.8,4.01794]
[1724862615393,4.01697,2489.5,2488.8,4.01794]
[1724862615595,0.05000007,2489.6,2487.9,2.4002]
[1724862615596,6.79608708,2489.4,2487.9,2.4002]
[1724862615903,4.01782,2489.0,2488.3,4.01867]
[1724862616052,4.01782,2489.0,2488.2,4.01881]
[1724862616053,2.77408207,2488.9,2488.2,4.01881]
[1724862616253,2.77408207,2488.9,2488.8,4.018]
[1724862616254,2.3223,2488.9,2488.8,4.018]
[1724862616490,2.2903,2489.3,2488.9,4.0177]
[1724862616690,2.2903,2489.3,2489.1,4.01751]
[1724862616691,0.53403001,2489.2,2489.1,4.01751]
[1724862616863,2.2903,2489.3,2489.2,4.01735]
[1724862617069,2.2903,2489.3,2489.0,4.01766]
[1724862617289,0.05000007,2489.2,2488.8,4.01794]
[1724862617508,4.01751,2489.1,2488.4,4.01859]
[1724862617705,0.05000007,2489.0,2488.4,4.01859]
[1724862618052,0.05000007,2489.0,2488.2,4.01882]
[1724862618256,0.05000007,2489.0,2488.5,4.01844]
[1724862618477,0.05000007,2489.0,2488.5,4.01836]
[1724862618697,0.05000007,2489.0,2488.3,4.01874]
[1724862618698,4.06769007,2489.0,2488.3,4.0187]
[1724862618865,5.70776901,2488.9,2488.1,4.01898]
[1724862619066,5.70776901,2488.9,2487.9,0.4043]
[1724862619067,3.05000007,2488.8,2488.3,4.0187]
[1724862619255,0.57577691,2488.8,2488.6,4.0183]
[1724862619461,2.301,2488.9,2488.4,4.01853]
[1724862619688,0.05000007,2488.8,2488.4,4.01853]
[1724862619857,0.05000007,2488.8,2488.5,4.01846]
[1724862620166,0.23510001,2488.8,2488.6,4.0182]
[1724862620368,0.23510001,2488.8,2488.1,4.01907]
[1724862620369,0.05000007,2488.7,2488.3,4.01876]
[1724862620569,0.05000007,2488.7,2488.4,4.01852]
[1724862620796,0.05000007,2488.7,2488.3,4.01876]
[1724862621002,0.23510001,2488.8,2487.9,4.0194]
[1724862621203,2.301,2488.9,2488.7,4.01816]
[1724862621499,0.05000007,2488.8,2488.3,4.01867]
[1724862622014,0.05000007,2488.8,2488.3,8.03742]
[1724862622292,0.05000007,2488.8,2488.3,4.01867]
[1724862622469,4.06800007,2488.8,2488.1,4.01906]
[1724862622673,4.70486908,2488.8,2488.1,4.01906]
[1724862623078,0.68686908,2488.8,2488.2,4.01895]
[1724862623279,0.05000007,2488.8,2488.4,4.01855]
[1724862623712,0.05000007,2488.8,2488.4,4.01853]
[1724862624557,0.05000007,2488.8,2487.9,0.4043]
[1724862624558,2.4164,2489.3,2489.1,4.01748]
[1724862624777,4.01649,2489.8,2489.1,4.01748]
[1724862624778,2.4164,2489.6,2489.1,4.01748]
[1724862624958,0.05000007,2489.5,2488.9,4.01771]
[1724862625459,0.05000007,2489.5,2488.9,4.01783]
[1724862625686,0.77038303,2489.5,2488.7,4.01802]
[1724862625898,2.4164,2489.1,2488.3,0.4043]
[1724862626201,0.05000007,2489.1,2488.0,0.48466396]
[1724862626404,0.05000007,2489.1,2488.7,4.01807]
[1724862626554,4.06761007,2489.1,2488.3,8.03742]
[1724862626760,4.06761007,2489.1,2488.4,4.01864]
[1724862626959,4.06761007,2489.1,2488.3,4.0187]
[1724862626960,2.4932,2488.9,2488.3,8.03739]
[1724862627260,0.05000007,2488.8,2488.5,4.01847]
[1724862627459,2.54320007,2488.9,2488.0,0.4043]
[1724862627662,0.29499611,2488.8,2488.3,4.01869]
[1724862627999,0.29499611,2488.8,2487.3,4.42463]
[1724862628000,2.4932,2488.6,2487.3,4.42463]
[1724862628304,2.4932,2488.6,2487.3,4.42462]
[1724862628305,2.4849,2488.0,2487.3,4.42462]
[1724862628501,4.0197,2487.8,2487.3,0.4043]
[1724862628706,0.05000007,2487.9,2486.0,2.4399]
[1724862628707,2.4163,2487.6,2486.0,2.4399]
[1724862628919,2.4163,2487.6,2487.2,4.02058]
[1724862629200,0.05000007,2487.7,2487.3,4.02034]
[1724862629510,4.01946,2487.9,2487.0,4.02086]
[1724862629661,2.4163,2488.1,2487.3,4.0203]
[1724862629662,0.05000007,2487.8,2487.3,4.0203]
[1724862630295,0.05000007,2487.8,2487.1,4.02065]
[1724862630600,0.05000007,2487.8,2486.9,4.02093]
[1724862630601,4.01979,2487.7,2486.9,4.02093]
[1724862630826,6.41674,2487.5,2486.7,4.02129]
[1724862630963,2.3965,2487.8,2487.2,4.02046]
[1724862631163,0.05000007,2487.7,2487.2,4.02046]
[1724862631358,2.44650007,2487.8,2487.2,4.02045]
[1724862631565,0.05000007,2487.7,2487.0,4.02083]
[1724862631774,0.29465008,2487.7,2487.0,4.02083]
[1724862631974,4.01996,2487.6,2486.8,8.04224]
[1724862632266,4.01996,2487.6,2486.8,4.02121]
[1724862632267,0.48146108,2487.5,2486.8,4.02121]
[1724862632488,4.02068,2487.2,2486.4,4.02181]
[1724862632810,4.02091,2487.0,2486.3,4.02203]
[1724862633018,0.05000007,2486.9,2486.3,4.02203]
[1724862633213,0.05000007,2486.9,2486.2,4.02211]
[1724862633521,2.3185,2486.8,2486.2,4.02209]
[1724862633811,0.05000007,2486.7,2486.1,4.0222]
[1724862634392,0.05000007,2486.7,2485.7,4.02292]
[1724862634393,4.02192,2486.4,2485.7,4.02292]
[1724862634599,4.02192,2486.4,2485.2,2.356]
[1724862634600,4.02246,2486.1,2485.4,4.0234]
[1724862634922,0.05000007,2486.0,2485.5,4.02327]
[1724862635528,4.02327,2485.6,2484.6,4.02474]
[1724862635815,0.55,2485.9,2483.8,2.1542]
[1724862635816,2.49690007,2485.9,2484.7,2.89238265]
[1724862636022,2.4469,2486.4,2486.0,4.02251]
[1724862636225,2.4469,2486.9,2486.2,4.02205]
[1724862636420,2.4469,2486.9,2486.3,4.02189]
[1724862636716,0.05000007,2486.8,2486.2,4.02205]
[1724862636916,0.05000007,2486.8,2485.6,4.02313]
[1724862636917,2.4469,2486.5,2485.7,0.4043]
[1724862637129,4.02215,2486.3,2485.4,4.02338]
[1724862637329,2.4924,2486.1,2485.5,4.02328]
[1724862637618,0.05000007,2486.0,2484.9,2.4076]
[1724862637822,2.4924,2486.1,2484.9,2.4076]
[1724862637823,2.54240007,2486.4,2485.9,4.02258]
[1724862638027,2.54240007,2486.4,2485.8,4.02273]
[1724862638028,2.54240007,2486.4,2485.8,4.02272]
[1724862638237,2.79664008,2486.4,2486.0,4.02241]
[1724862638526,2.79664008,2486.4,2485.8,4.02272]
[1724862638693,0.55,2486.3,2485.2,4.02366]
[1724862638901,0.55,2486.3,2484.8,0.28923827]
[1724862638902,2.54240007,2486.2,2485.6,4.02315]
[1724862639124,2.54240007,2486.2,2485.7,4.02301]
[1724862639322,2.54240007,2486.2,2485.6,4.02315]
[1724862639645,2.54240007,2486.2,2485.9,4.02256]
[1724862639830,0.05000007,2486.1,2485.9,4.02265]
[1724862639993,2.54240007,2486.2,2485.9,4.02265]
[1724862640198,2.4924,2486.2,2485.9,8.04521]
[1724862640436,2.4924,2486.2,2485.4,0.0804537]
[1724862640437,0.30424008,2486.1,2485.4,4.02338]
[1724862640615,2.4924,2486.2,2486.1,4.02236]
[1724862640809,0.05000007,2486.5,2485.7,4.02292]
[1724862641138,0.05000007,2486.5,2485.0,2.4557]
[1724862641139,3.0,2486.5,2486.2,4.02207]
[1724862641342,2.4904,2486.9,2486.6,4.0215]
[1724862641545,4.02033,2487.4,2486.8,4.02123]
[1724862641546,2.4904,2487.3,2486.8,4.02123]
[1724862641723,0.651073,2487.2,2486.8,4.02123]
[1724862641900,2.4904,2487.3,2486.4,0.08042388]
[1724862642105,2.4904,2487.9,2487.1,4.02074]
[1724862642416,2.4904,2487.9,2487.3,4.02029]
[1724862642618,2.4904,2487.9,2487.6,4.01982]
[1724862643103,2.38630007,2488.3,2487.6,8.03965]
[1724862643300,0.05000007,2488.2,2487.6,4.01982]
[1724862643601,0.69049808,2488.2,2487.7,4.01968]
[1724862643828,0.40371505,2488.1,2487.2,4.02047]
[1724862644039,2.3363,2488.3,2486.7,2.9018]
[1724862644040,0.05000007,2488.0,2487.6,4.01992]
[1724862644246,0.05000007,2488.0,2487.4,4.0202]
[1724862644855,4.02004,2487.6,2486.8,4.02113]
[1724862645008,0.05000007,2487.5,2487.0,4.02075]
[1724862645204,0.05000007,2487.5,2486.8,4.02117]
[1724862645205,5.3363,2487.8,2486.8,4.02111]
[1724862645454,4.02023,2487.5,2486.8,4.02121]
[1724862645667,8.04046,2487.5,2486.8,4.02121]
[1724862645842,1.185578,2487.7,2486.6,4.02148]
[1724862645843,4.02054,2487.3,2486.6,4.02148]
[1724862646212,4.02054,2487.3,2486.4,4.02186]
[1724862646213,7.07060007,2487.2,2486.4,4.02186]
[1724862646407,3.05000007,2487.2,2486.6,4.02154]
[1724862646709,3.05000007,2487.2,2486.5,4.02171]
[1724862646710,0.635578,2487.1,2486.5,4.02171]
[1724862646910,0.05000007,2487.0,2486.6,4.02154]
[1724862647215,0.05000007,2487.0,2486.1,0.630957]
[1724862647216,6.49652,2486.9,2486.1,4.02223]
[1724862647452,4.07125007,2486.8,2486.1,4.02223]
[1724862647613,4.07125007,2486.8,2485.4,0.4043]
[1724862647614,4.02172,2486.5,2485.8,4.0228]
[1724862647809,0.45217207,2486.4,2485.8,4.0228]
[1724862648041,6.49744,2486.3,2485.5,4.02326]
[1724862648225,4.07234007,2486.2,2485.5,4.02326]
[1724862648423,4.02241,2486.1,2485.3,4.02355]
[1724862648717,3.45724108,2486.0,2485.3,4.02361]
[1724862648943,3.45724108,2486.0,2485.5,4.0232]
[1724862649254,2.4753,2486.3,2485.8,4.02272]
[1724862649664,3.0,2486.5,2486.0,4.0225]
[1724862649812,3.0,2486.5,2486.2,4.02217]
[1724862650199,3.0,2486.6,2485.6,4.02308]
[1724862650450,0.05000007,2486.6,2486.1,4.02229]
[1724862650654,2.54940007,2486.7,2486.3,4.02193]
[1724862650856,2.2895,2487.1,2486.6,4.02149]
[1724862651054,2.2895,2487.1,2486.8,4.02118]
[1724862651254,4.01929,2488.0,2487.1,4.02074]
[1724862651255,2.2895,2487.5,2487.1,4.02074]
[1724862651473,0.05000007,2487.4,2486.9,4.02095]
[1724862651695,4.02061,2487.2,2486.5,8.04326]
[1724862651849,0.05000007,2487.1,2486.7,4.02127]
[1724862652050,0.05000007,2487.1,2486.5,4.02164]
[1724862652293,4.07085007,2487.1,2486.3,4.42624]
[1724862652508,0.40708501,2487.0,2486.3,4.42623]
[1724862652783,0.45708508,2487.0,2486.5,4.02157]
[1724862652999,4.07102007,2487.0,2486.3,4.42625]
[1724862653201,2.378,2486.9,2486.1,4.02224]
[1724862653354,0.05000007,2486.8,2486.1,4.02224]
[1724862653551,0.05000007,2486.8,2486.3,4.0219]
[1724862653978,0.05000007,2486.9,2486.4,4.02177]
[1724862654179,4.02125,2486.8,2486.0,4.42671]
[1724862654385,4.02168,2486.6,2485.8,4.02274]
[1724862654552,0.05000007,2486.5,2486.0,4.02245]
[1724862654848,6.47111,2486.7,2486.2,4.02206]
[1724862654849,2.4496,2486.7,2486.2,4.02206]
[1724862655052,0.05,2485.8,2484.3,0.83472369]
[1724862655252,2.0,2486.1,2483.7,2.50752836]
[1724862655253,6.34073,2484.4,2483.7,4.02623]
[1724862655556,2.3155,2484.8,2484.3,4.02513]
[1724862656054,5.36550007,2485.2,2484.6,4.02469]
[1724862656291,2.3155,2485.2,2484.6,4.02469]
[1724862656605,2.3155,2485.2,2484.9,4.02418]
[1724862656799,2.3155,2485.2,2484.9,8.04837]
[1724862656963,2.3155,2485.2,2484.9,4.02418]
[1724862657151,2.3155,2485.2,2484.2,0.4043]
[1724862657152,0.05000007,2485.1,2484.2,0.4043]
[1724862657354,2.42990007,2485.7,2485.2,4.02371]
[1724862657559,3.05000007,2485.9,2485.3,8.04713]
[1724862657815,3.05000007,2485.9,2485.2,4.02369]
[1724862657816,4.07270007,2485.9,2485.2,4.02369]
[1724862657985,4.07270007,2485.9,2484.7,4.02462]
[1724862657986,0.05000007,2485.9,2485.6,4.02315]
[1724862658187,0.05000007,2485.9,2485.5,4.02319]
[1724862658188,2.3799,2484.9,2483.1,2.3184]
[1724862658397,4.02602,2483.9,2483.0,4.02723]
[1724862658686,4.02602,2483.9,2483.2,4.02693]
[1724862658687,0.05000007,2483.8,2483.2,4.02693]
[1724862658887,0.05000007,2483.8,2483.4,4.02657]
[1724862659302,0.05000007,2483.8,2482.9,0.29215329]
[1724862659460,0.05000007,2483.9,2483.6,4.02629]
[1724862659828,0.05000007,2483.9,2483.1,4.02716]
[1724862659829,2.42990007,2484.0,2483.1,4.02716]
[1724862659961,2.42990007,2484.0,2482.9,0.29215329]
[1724862659962,0.05000007,2484.6,2483.9,4.02592]
[1724862660160,0.05000007,2484.6,2484.0,4.02563]
[1724862660468,0.05000007,2484.6,2483.3,6.32328]
[1724862660469,4.02538,2484.3,2483.7,4.02623]
[1724862660773,2.3465,2484.1,2483.2,4.02695]
[1724862660982,2.3465,2484.1,2483.4,4.02663]
[1724862660983,4.07589007,2484.0,2483.4,4.02663]
[1724862661162,0.05000007,2484.0,2483.4,4.02661]
[1724862661362,4.07577007,2484.0,2483.4,4.02661]
[1724862661620,0.55,2483.9,2483.2,4.43123]
[1724862661774,0.05000007,2483.8,2483.2,4.43123]
[1724862661975,4.57634,2483.7,2483.0,4.02728]
[1724862662188,0.05000007,2483.6,2483.2,4.02703]
[1724862662397,0.05000007,2483.6,2483.0,4.02728]
[1724862662699,2.4191,2483.5,2482.6,4.02799]
[1724862662881,0.05000007,2483.6,2483.4,4.02667]
[1724862663204,0.05000007,2483.6,2482.3,4.431343]
[1724862663205,0.05000007,2483.6,2483.3,4.02689]
[1724862663370,0.05000007,2483.8,2483.4,4.02673]
[1724862663714,0.05000007,2483.8,2483.5,4.02654]
[1724862663880,0.05000007,2483.8,2483.4,4.02659]
[1724862664208,0.05000007,2483.8,2482.5,4.0281]
[1724862664209,2.3725,2483.2,2482.5,4.0281]
[1724862664368,2.3725,2483.2,2482.1,4.02881]
[1724862664369,4.02784,2482.8,2482.1,4.02881]
[1724862664566,0.05000007,2482.7,2482.2,4.02852]
[1724862664894,0.05000007,2482.7,2482.3,4.02848]
[1724862665099,0.05000007,2483.0,2482.3,4.02839]
[1724862665305,0.05000007,2483.0,2481.6,4.02963]
[1724862665306,2.3725,2482.2,2481.6,4.02963]
[1724862665603,0.69011107,2482.1,2481.1,4.03039]
[1724862665804,0.05000007,2482.1,2481.8,4.02919]
[1724862666212,0.05000007,2482.1,2480.7,2.394]
[1724862666369,0.05000007,2482.1,2480.0,2.3701]
[1724862666370,2.4523,2481.8,2480.0,2.3701]
[1724862666563,0.55,2482.0,2479.9,4.03241]
[1724862666564,6.42368,2481.6,2479.9,4.03241]
[1724862666795,0.75236808,2481.5,2480.0,0.403241]
[1724862666996,0.55,2482.0,2481.3,4.03002]
[1724862666997,2.394,2482.0,2481.3,4.03002]
[1724862667243,2.394,2482.0,2480.9,4.03071]
[1724862667244,0.05000007,2481.9,2481.2,4.03019]
[1724862667411,4.02701,2483.3,2480.5,2.4714]
[1724862667412,0.07423956,2482.3,2481.3,4.1107057]
[1724862667628,0.07423956,2482.3,2480.7,4.03104]
[1724862667629,0.07423956,2482.3,2481.4,0.49165296]
[1724862667924,0.07423956,2482.3,2481.7,4.02945]
[1724862668130,4.02888,2482.1,2481.4,4.02984]
[1724862668326,0.45288807,2482.0,2481.4,4.02984]
[1724862668645,4.02953,2481.7,2481.1,4.03035]
[1724862668800,0.05000007,2481.6,2481.1,4.03035]
[1724862669001,0.05000007,2481.6,2480.8,4.03088]
[1724862669002,6.43382,2481.4,2480.8,4.03088]
[1724862669234,0.52632502,2481.3,2480.8,4.03088]
[1724862669499,0.52632502,2481.3,2480.5,4.03131]
[1724862669500,2.4038,2481.1,2479.8,4.03252]
[1724862669841,0.05000007,2481.0,2480.8,4.03095]
[1724862670006,2.45380007,2481.1,2480.8,4.03095]
[1724862670202,2.4038,2481.1,2480.8,4.03095]
[1724862670471,3.0,2481.7,2480.4,4.03155]
[1724862670767,3.0,2482.1,2480.0,6.48459]
[1724862670768,2.4347,2481.6,2481.4,4.02987]
[1724862670978,4.02885,2482.1,2481.2,4.03024]
[1724862670979,4.02938,2481.8,2481.2,4.03024]
[1724862671273,0.402938,2481.7,2481.2,4.03026]
[1724862671470,4.0292,2481.9,2481.2,4.03026]
[1724862671688,4.02959,2481.7,2481.0,4.0305]
[1724862671831,2.3923,2482.5,2480.9,2.356]
[1724862672030,4.02863,2482.3,2481.6,4.0296]
[1724862672373,0.05000007,2482.2,2481.6,4.02954]
[1724862673139,4.02853,2482.3,2481.6,8.05908]
[1724862673352,0.75785308,2482.2,2481.6,8.05908]
[1724862673565,0.75785308,2482.2,2480.9,5.356]
[1724862673566,0.49761654,2482.1,2480.9,3.0]
[1724862673733,0.05000007,2482.0,2481.5,4.0298]
[1724862673931,0.05000007,2482.0,2481.6,4.02963]
[1724862674349,0.05000007,2482.0,2481.4,4.02982]
[1724862674631,0.05000007,2482.0,2480.8,4.03092]
[1724862674632,4.02968,2481.6,2480.8,4.03092]
[1724862674874,2.3685,2481.9,2481.5,4.02979]
[1724862674875,0.05000007,2481.7,2481.5,4.02979]
[1724862675029,0.05000007,2481.7,2480.4,6.39293]
[1724862675030,0.05000007,2481.7,2481.3,4.03002]
[1724862675228,6.31621,2482.4,2481.8,4.02933]
[1724862675428,4.02879,2482.2,2481.6,4.02954]
[1724862675668,4.07885007,2482.1,2481.6,4.02954]
[1724862675874,0.05000007,2482.1,2481.4,4.02986]
[1724862676071,2.2878,2483.0,2482.1,4.02879]
[1724862676276,2.2878,2483.0,2482.6,4.02793]
[1724862676496,2.2878,2483.0,2482.2,4.0286]
[1724862676497,0.27878007,2482.9,2482.2,4.0286]
[1724862676787,0.27878007,2482.9,2482.6,4.02803]
[1724862676788,0.22878,2482.9,2482.6,4.02803]
[1724862676936,2.2878,2483.0,2482.9,4.02754]
[1724862677134,4.02466,2484.7,2482.4,4.02831]
[1724862677135,2.2878,2483.6,2483.4,4.0266]
[1724862677337,4.02546,2484.2,2482.5,0.4043]
[1724862677338,2.2878,2484.2,2483.8,4.02598]
[1724862677536,2.2878,2484.2,2483.8,4.02596]
[1724862677770,2.2878,2484.2,2484.1,4.0256]
[1724862678000,0.00535992,2484.6,2484.2,4.02543]
[1724862678194,0.00535992,2484.6,2483.6,0.08051503]
[1724862678195,0.00535992,2484.6,2484.5,4.02495]
[1724862678478,0.00535992,2484.6,2484.5,12.07485]
[1724862678678,0.00535992,2484.6,2484.5,13.69290556]
[1724862678679,0.00051115,2484.6,2484.5,13.69290556]
[1724862678839,2.2878,2485.9,2484.5,9.66795556]
[1724862679034,4.02411,2485.1,2484.4,4.02499]
[1724862679273,0.05000007,2485.0,2484.4,4.02499]
[1724862679538,2.2878,2485.9,2484.0,3.0]
[1724862679539,2.4541,2485.1,2484.0,4.02575]
[1724862679772,4.02466,2484.7,2484.0,4.02575]
[1724862679932,0.05000007,2484.6,2484.0,4.02575]
[1724862680132,0.05000007,2484.6,2483.5,4.02651]
[1724862680373,0.05000007,2485.0,2483.4,0.41073542]
[1724862680583,3.05000007,2485.0,2484.4,4.02506]
[1724862680735,0.55041001,2484.9,2484.5,4.02491]
[1724862681074,0.05000007,2484.8,2484.3,4.02512]
[1724862681274,0.05000007,2484.8,2484.6,4.02478]
[1724862681501,0.05000007,2484.8,2484.3,4.02515]
[1724862681842,0.05000007,2484.8,2484.0,4.02576]
[1724862682117,4.0248,2484.6,2483.9,4.02587]
[1724862682329,0.55,2484.7,2483.7,4.02622]
[1724862682330,7.47744007,2484.5,2483.7,4.02622]
[1724862682491,3.45248007,2484.5,2483.7,4.02622]
[1724862682683,4.47744007,2484.5,2483.7,4.02622]
[1724862683030,0.45248007,2484.5,2483.8,4.02608]
[1724862683239,0.34524801,2484.4,2483.9,4.02584]
[1724862683398,0.34524801,2484.4,2483.2,4.0269]
[1724862683399,0.05000007,2484.3,2483.0,4.02724]
[1724862683582,4.0259,2484.0,2483.2,4.02703]
[1724862683787,4.0261,2483.8,2483.1,4.02722]
[1724862684117,0.05000007,2483.9,2482.3,4.02848]
[1724862684118,2.4619,2483.4,2482.3,4.02848]
[1724862684281,4.02752,2483.0,2482.3,4.02848]
[1724862684484,4.02799,2482.7,2481.9,4.02909]
[1724862684716,4.02819,2482.5,2481.7,4.02946]
[1724862684917,0.05000007,2482.4,2481.7,4.02946]
[1724862685220,0.05000007,2482.4,2481.5,4.02975]
[1724862685221,4.02853,2482.3,2481.5,4.02978]
[1724862685434,0.05000007,2482.2,2481.0,4.11115414]
[1724862685727,0.05000007,2482.2,2481.9,4.02903]
[1724862686282,4.02865,2482.3,2481.5,4.02976]
[1724862686481,0.05000007,2482.4,2481.3,4.0301]
[1724862686482,4.02903,2482.0,2481.3,4.0301]
[1724862686720,0.05000007,2481.9,2481.1,4.03041]
[1724862686938,0.05000007,2481.9,2480.7,4.03097]
[1724862686939,4.02994,2481.5,2480.7,4.03097]
[1724862687234,4.02994,2481.5,2480.8,4.0309]
[1724862687235,0.05000007,2481.4,2480.8,4.0309]
[1724862687398,0.55,2481.3,2480.8,4.0309]
[1724862687598,0.55,2481.3,2480.7,4.03097]
[1724862687599,3.05000007,2481.4,2480.9,4.03067]
[1724862687787,3.05000007,2481.6,2481.2,4.03022]
[1724862687982,3.05000007,2481.6,2480.9,4.03077]
[1724862688238,0.55,2481.5,2480.8,4.03084]
[1724862688387,3.0,2481.6,2481.2,4.03029]
[1724862688589,3.0,2482.0,2481.4,4.02997]
[1724862688821,2.4709,2482.2,2481.5,4.0297]
[1724862689006,2.4709,2482.2,2481.3,0.08060071]
[1724862689007,2.4709,2482.8,2482.1,4.02873]
[1724862689195,2.4709,2482.8,2482.3,4.02845]
[1724862689428,2.4709,2482.8,2481.9,0.08056729]
[1724862689429,0.05000007,2482.7,2481.8,4.02918]
[1724862689658,4.02868,2482.2,2481.6,4.02954]
[1724862689958,4.07884007,2482.1,2480.9,3.0]
[1724862690163,4.07884007,2482.1,2481.2,4.03021]
[1724862690465,4.02816,2482.6,2481.3,0.0805979]
[1724862690625,0.05000007,2482.5,2482.2,4.02867]
[1724862690969,0.05000007,2482.5,2482.1,4.02873]
[1724862691126,0.05000007,2482.7,2482.3,4.0285]
[1724862691323,0.05000007,2482.7,2482.3,8.05681]
[1724862691526,2.4709,2482.8,2482.5,4.02816]
[1724862691731,4.02479,2484.6,2481.9,0.0805706]
[1724862691732,2.4683,2483.3,2482.8,4.02755]
[1724862691964,0.05000007,2483.2,2482.8,4.02755]
[1724862692272,2.4683,2483.3,2483.0,4.02737]
[1724862692428,0.05000007,2483.2,2482.8,8.05512]
[1724862692623,4.02615,2483.8,2483.1,4.0271]
[1724862692822,4.02615,2483.8,2482.4,4.02831]
[1724862692823,2.4683,2483.8,2483.4,4.02667]
[1724862693132,0.05000007,2483.7,2482.6,4.02794]
[1724862693459,0.05000007,2483.7,2482.8,4.02761]
[1724862693460,4.02683,2483.4,2482.8,4.02761]
[1724862693667,4.02683,2483.4,2482.6,4.02794]
[1724862693668,4.02716,2483.2,2482.6,4.028]
[1724862693846,0.05000007,2483.3,2482.6,4.028]
[1724862693847,0.05000007,2483.1,2482.6,4.02792]
[1724862694173,0.05000007,2483.1,2482.8,4.0276]
[1724862694382,0.05000007,2483.3,2483.0,4.02728]
[1724862694674,0.05000007,2483.3,2482.8,4.02761]
[1724862694817,2.4683,2483.8,2482.2,0.702896]
[1724862694818,0.05000007,2483.5,2482.3,0.4107196]
[1724862695253,0.05000007,2483.5,2483.0,4.02729]
[1724862695470,4.02701,2483.3,2482.6,4.02794]
[1724862695652,0.05000007,2483.2,2482.6,4.02794]
[1724862695857,4.0274,2483.0,2482.4,4.02829]
[1724862696162,0.05000007,2482.9,2482.2,4.02857]
[1724862696323,0.05000007,2482.9,2482.0,4.02887]
[1724862696524,0.55,2482.8,2482.3,4.02842]
[1724862696745,5.3001,2483.0,2482.4,4.02835]
[1724862696990,5.3001,2483.0,2481.9,4.1096795]
[1724862696991,5.3001,2483.0,2482.7,4.02784]
[1724862697209,2.3001,2483.0,2482.7,4.02784]
[1724862697416,0.05000007,2483.2,2482.7,4.02784]
[1724862697623,2.3001,2483.4,2483.1,4.02722]
[1724862697975,0.05000007,2483.6,2483.1,4.02722]
[1724862698171,4.02566,2484.1,2483.5,4.02644]
[1724862698375,2.3001,2484.2,2483.6,4.02638]
[1724862698679,4.02599,2483.9,2483.3,4.0268]
[1724862699013,0.55156969,2483.8,2483.3,4.0268]
[1724862699184,0.05000007,2483.7,2483.3,4.0268]
[1724862699388,0.05000007,2483.9,2483.4,0.08053678]
[1724862699608,0.05000007,2483.9,2482.5,4.43246]
[1724862699609,4.02595,2483.9,2483.2,4.02698]
[1724862699786,0.05000007,2483.8,2483.4,4.02661]
[1724862700091,4.02482,2484.6,2483.8,4.02608]
[1724862700288,4.07499007,2484.5,2483.8,4.428588]
[1724862700484,4.07499007,2484.5,2483.4,4.02667]
[1724862700485,0.05000007,2484.5,2484.2,4.02533]
[1724862700698,2.2912,2484.7,2484.2,4.02531]
[1724862700919,0.05000007,2484.6,2484.0,4.02564]
[1724862701081,0.05000007,2484.6,2484.1,4.02549]
[1724862701279,0.05000007,2484.9,2484.5,4.02489]
[1724862701584,4.52613962,2484.8,2483.9,11.43581]
[1724862701843,0.05000007,2484.7,2484.3,4.02525]
[1724862702017,4.07473007,2484.7,2483.9,4.02581]
[1724862702219,4.07473007,2484.7,2483.7,4.02613]
[1724862702220,4.02515,2484.4,2483.7,4.02613]
[1724862702520,4.07529007,2484.3,2483.7,4.02613]
[1724862702728,0.05000007,2484.2,2483.5,4.0265]
[1724862703025,0.05000007,2484.2,2483.3,4.02687]
[1724862703026,4.02582,2484.0,2483.3,4.02689]
[1724862703218,2.79276962,2484.3,2483.4,0.08053554]
[1724862703219,2.2912,2484.3,2483.4,0.08053554]
[1724862703424,2.2912,2484.3,2482.8,0.3]
[1724862703425,0.05000007,2484.5,2483.9,4.02591]
[1724862703729,0.05000007,2484.5,2483.7,4.02613]
[1724862703730,4.02516,2484.4,2483.7,4.02613]
[1724862703929,0.05000007,2484.5,2483.2,0.402711]
[1724862703930,0.05000007,2484.3,2483.2,0.402711]
[1724862704100,0.05000007,2484.5,2484.0,4.02563]
[1724862704300,6.43403,2485.2,2484.5,4.02485]
[1724862704522,6.43403,2485.2,2483.4,8.06925785]
[1724862704523,4.02415,2485.0,2484.4,4.02497]
[1724862704687,0.05000007,2484.9,2484.4,4.02497]
[1724862704884,4.02469,2484.7,2484.0,8.05137]
[1724862705088,4.02469,2484.7,2483.4,5.3944]
[1724862705089,0.55156969,2484.6,2483.4,5.3944]
[1724862705316,4.02448,2484.8,2484.1,4.02548]
[1724862705498,0.05000007,2484.7,2484.3,4.02518]
[1724862705703,0.05000007,2484.7,2484.1,4.02548]